[Event "*** Titled Tuesday Blitz"]
[Site "Chess.com"]
[Date "2021.03.30"]
[Round "5"]
[White "SoldierOfGod1"]
[Black "JoliyRoger"]
[Result "1/2-1/2"]
[WhiteElo "2511"]
[BlackElo "2380"]
[TimeControl "180+1"]
[EndTime "10:55:59 PDT"]
[Termination "Game drawn by repetition"]

1. c4 {[%clk 0:03:00.9]} 1... c5 {[%clk 0:02:51.7]} 2. Nf3 {[%clk 0:03:00.3]}
2... e6 {[%clk 0:02:51.3]} 3. g3 {[%clk 0:02:58.9]} 3... Nf6 {[%clk 0:02:51.3]}
4. Bg2 {[%clk 0:02:58.8]} 4... Be7 {[%clk 0:02:51.8]} 5. O-O {[%clk 0:02:58.7]}
5... O-O {[%clk 0:02:52.2]} 6. d4 {[%clk 0:02:59.4]} 6... cxd4 {[%clk
0:02:52.1]} 7. Nxd4 {[%clk 0:02:56.6]} 7... Nc6 {[%clk 0:02:52.6]} 8. Nc3 {[%clk
0:02:55.8]} 8... Ne5 {[%clk 0:02:52.3]} 9. b3 {[%clk 0:02:54.8]} 9... d6 {[%clk
0:02:52.8]} 10. Bb2 {[%clk 0:02:54.7]} 10... a6 {[%clk 0:02:53.2]} 11. h3 {[%clk
0:02:54.5]} 11... Qc7 {[%clk 0:02:53.6]} 12. Rc1 {[%clk 0:02:52.4]} 12... Rb8
{[%clk 0:02:53]} 13. a4 {[%clk 0:02:49.6]} 13... Re8 {[%clk 0:02:50.5]} 14. Kh2
{[%clk 0:02:48.8]} 14... Bf8 {[%clk 0:02:49.8]} 15. f4 {[%clk 0:02:48.7]} 15...
Ng6 {[%clk 0:02:49.6]} 16. e4 {[%clk 0:02:40.4]} 16... b6 {[%clk 0:02:49.5]} 17.
f5 {[%clk 0:02:37.6]} 17... Ne5 {[%clk 0:02:48]} 18. fxe6 {[%clk 0:02:35.7]}
18... fxe6 {[%clk 0:02:48.9]} 19. Qe2 {[%clk 0:02:28.2]} 19... Bb7 {[%clk
0:02:48]} 20. Rf2 {[%clk 0:02:12.5]} 20... Ba8 {[%clk 0:02:45.9]} 21. Rcf1
{[%clk 0:02:11]} 21... Nfd7 {[%clk 0:02:46.3]} 22. Qh5 {[%clk 0:01:35]} 22...
Nc5 {[%clk 0:02:10.5]} 23. Ba1 {[%clk 0:01:11.4]} 23... g6 {[%clk 0:01:59.2]}
24. Qh4 {[%clk 0:01:09.6]} 24... Bg7 {[%clk 0:01:59.2]} 25. Rd2 {[%clk
0:00:40.2]} 25... Qe7 {[%clk 0:01:31.6]} 26. Qxe7 {[%clk 0:00:37.9]} 26... Rxe7
{[%clk 0:01:31.5]} 27. Nde2 {[%clk 0:00:37.1]} 27... Nxb3 {[%clk 0:01:30.6]} 28.
Rxd6 {[%clk 0:00:36.6]} 28... Nxa1 {[%clk 0:01:29.2]} 29. Rxa1 {[%clk
0:00:35.2]} 29... Nxc4 {[%clk 0:01:29.9]} 30. Rdd1 {[%clk 0:00:31.5]} 30... Ne3
{[%clk 0:01:29.5]} 31. Rd6 {[%clk 0:00:29.4]} 31... Be5 {[%clk 0:00:59.6]} 32.
Rd3 {[%clk 0:00:26.2]} 32... Nxg2 {[%clk 0:00:58.7]} 33. Kxg2 {[%clk 0:00:27.1]}
33... b5 {[%clk 0:00:59.2]} 34. axb5 {[%clk 0:00:27.1]} 34... axb5 {[%clk
0:00:59.7]} 35. Re1 {[%clk 0:00:21.1]} 35... b4 {[%clk 0:00:58.9]} 36. Rb1
{[%clk 0:00:16.3]} 36... Rc7 {[%clk 0:00:38.8]} 37. Kh2 {[%clk 0:00:10.9]} 37...
Rf8 {[%clk 0:00:38.9]} 38. Rxb4 {[%clk 0:00:06.6]} 38... Bb7 {[%clk 0:00:17.4]}
39. Nd1 {[%clk 0:00:04.4]} 39... Rc2 {[%clk 0:00:12.8]} 40. Rxb7 {[%clk
0:00:02.4]} 40... Rxe2+ {[%clk 0:00:13.3]} 41. Kg1 {[%clk 0:00:02.9]} 41... Bd6
{[%clk 0:00:11.4]} 42. Rxd6 {[%clk 0:00:02.1]} 42... Re1+ {[%clk 0:00:10.9]} 43.
Kg2 {[%clk 0:00:02.2]} 43... Re2+ {[%clk 0:00:11.6]} 44. Kg1 {[%clk 0:00:02.4]}
44... Re1+ {[%clk 0:00:12]} 45. Kg2 {[%clk 0:00:02.6]} 45... Re2+ {[%clk
0:00:12.6]} 46. Kg1 {[%clk 0:00:03.2]} 1/2-1/2

[Event "*** Titled Tuesday Blitz"]
[Site "Chess.com"]
[Date "2021.03.30"]
[Round "5"]
[White "TorFredrikKaasen"]
[Black "BrandonJacobson"]
[Result "0-1"]
[WhiteElo "2739"]
[BlackElo "2974"]
[TimeControl "180+1"]
[EndTime "10:56:00 PDT"]
[Termination "BrandonJacobson won by checkmate"]

1. Nf3 {[%clk 0:03:00.9]} 1... d5 {[%clk 0:02:59.2]} 2. g3 {[%clk 0:03:01.5]}
2... Nd7 {[%clk 0:02:57.9]} 3. d4 {[%clk 0:03:00.7]} 3... Nb6 {[%clk 0:02:58.5]}
4. Bg2 {[%clk 0:03:01.1]} 4... Bf5 {[%clk 0:02:58.4]} 5. O-O {[%clk 0:03:00.3]}
5... h6 {[%clk 0:02:57.8]} 6. Re1 {[%clk 0:03:00.3]} 6... e6 {[%clk 0:02:57.8]}
7. Nbd2 {[%clk 0:02:57.7]} 7... Nf6 {[%clk 0:02:56.4]} 8. c3 {[%clk 0:02:57.9]}
8... Be7 {[%clk 0:02:49.5]} 9. Ne5 {[%clk 0:02:53.7]} 9... O-O {[%clk
0:02:46.3]} 10. e4 {[%clk 0:02:50.6]} 10... dxe4 {[%clk 0:02:42.1]} 11. Nxe4
{[%clk 0:02:51.5]} 11... Nxe4 {[%clk 0:02:43]} 12. Bxe4 {[%clk 0:02:52.4]} 12...
Bxe4 {[%clk 0:02:43.9]} 13. Rxe4 {[%clk 0:02:53.3]} 13... c5 {[%clk 0:02:44.8]}
14. Qh5 {[%clk 0:02:45.2]} 14... f5 {[%clk 0:02:25.8]} 15. Re2 {[%clk
0:02:35.1]} 15... cxd4 {[%clk 0:01:58.3]} 16. cxd4 {[%clk 0:02:21]} 16... Bf6
{[%clk 0:01:42.5]} 17. Bd2 {[%clk 0:02:11.7]} 17... Qd5 {[%clk 0:01:31.1]} 18.
Bb4 {[%clk 0:02:08.3]} 18... Bxe5 {[%clk 0:01:11.4]} 19. Rxe5 {[%clk 0:01:05.6]}
19... Qxd4 {[%clk 0:01:00.6]} 20. Bc3 {[%clk 0:01:05.5]} 20... Qd7 {[%clk
0:01:00.2]} 21. Rae1 {[%clk 0:01:04.2]} 21... Rae8 {[%clk 0:00:55.2]} 22. Qe2
{[%clk 0:00:50.9]} 22... Rf6 {[%clk 0:00:41.1]} 23. Rc5 {[%clk 0:00:42.8]} 23...
Rf7 {[%clk 0:00:29.7]} 24. Qe5 {[%clk 0:00:41.4]} 24... Kh7 {[%clk 0:00:23.2]}
25. h4 {[%clk 0:00:38.7]} 25... Rfe7 {[%clk 0:00:22.8]} 26. Qe2 {[%clk
0:00:33.1]} 26... Nd5 {[%clk 0:00:22.3]} 27. Be5 {[%clk 0:00:32.2]} 27... b6
{[%clk 0:00:22.2]} 28. Rc4 {[%clk 0:00:31.4]} 28... Rc8 {[%clk 0:00:22.3]} 29.
Rec1 {[%clk 0:00:31.3]} 29... Rxc4 {[%clk 0:00:22.2]} 30. Qxc4 {[%clk
0:00:31.8]} 30... Qe8 {[%clk 0:00:19.7]} 31. a4 {[%clk 0:00:26.8]} 31... Qh5
{[%clk 0:00:18.6]} 32. a5 {[%clk 0:00:26.1]} 32... bxa5 {[%clk 0:00:16.9]} 33.
Qc6 {[%clk 0:00:24.8]} 33... Qf3 {[%clk 0:00:16.3]} 34. Qa8 {[%clk 0:00:19.4]}
34... Rf7 {[%clk 0:00:14.2]} 35. Qe8 {[%clk 0:00:16]} 35... Qh5 {[%clk
0:00:09.5]} 36. Rc8 {[%clk 0:00:14.9]} 36... f4 {[%clk 0:00:08.8]} 37. Qxe6
{[%clk 0:00:12]} 37... fxg3 {[%clk 0:00:07.6]} 38. Bxg3 {[%clk 0:00:12.9]} 38...
Nf6 {[%clk 0:00:07]} 39. Qd6 {[%clk 0:00:09.1]} 39... Qg6 {[%clk 0:00:06.7]} 40.
Qd8 {[%clk 0:00:08.2]} 40... Qb1+ {[%clk 0:00:07.2]} 41. Kh2 {[%clk 0:00:08.2]}
41... Ng4+ {[%clk 0:00:07.3]} 42. Kg2 {[%clk 0:00:08.8]} 42... Qe4+ {[%clk
0:00:07.6]} 43. Kg1 {[%clk 0:00:09]} 43... Qe1+ {[%clk 0:00:07.9]} 44. Kg2
{[%clk 0:00:09.6]} 44... Rxf2+ {[%clk 0:00:08.3]} 45. Bxf2 {[%clk 0:00:10.1]}
45... Qxf2+ {[%clk 0:00:09.2]} 46. Kh3 {[%clk 0:00:05.5]} 46... Qf3# {[%clk
0:00:09.1]} 0-1

[Event "*** Titled Tuesday Blitz"]
[Site "Chess.com"]
[Date "2021.03.30"]
[Round "5"]
[White "chessmachine14"]
[Black "BlackWidow515"]
[Result "1-0"]
[WhiteElo "2329"]
[BlackElo "2186"]
[TimeControl "180+1"]
[EndTime "10:56:00 PDT"]
[Termination "chessmachine14 won on time"]

1. e4 {[%clk 0:03:00.9]} 1... e5 {[%clk 0:02:59.6]} 2. Nf3 {[%clk 0:03:00.2]}
2... Nc6 {[%clk 0:02:58.8]} 3. Bb5 {[%clk 0:02:59.6]} 3... a6 {[%clk 0:02:58.5]}
4. Ba4 {[%clk 0:02:57.8]} 4... Nf6 {[%clk 0:02:59]} 5. O-O {[%clk 0:02:57.3]}
5... Be7 {[%clk 0:02:59.6]} 6. Re1 {[%clk 0:02:53.4]} 6... b5 {[%clk 0:03:00.1]}
7. Bb3 {[%clk 0:02:53.3]} 7... d6 {[%clk 0:03:00.5]} 8. c3 {[%clk 0:02:53.3]}
8... O-O {[%clk 0:03:00.3]} 9. d4 {[%clk 0:02:53.2]} 9... Bg4 {[%clk 0:03:00]}
10. Be3 {[%clk 0:02:52.4]} 10... exd4 {[%clk 0:02:59.1]} 11. cxd4 {[%clk
0:02:52.3]} 11... Na5 {[%clk 0:02:59.6]} 12. Bc2 {[%clk 0:02:52]} 12... c5
{[%clk 0:03:00]} 13. d5 {[%clk 0:02:50.1]} 13... Nc4 {[%clk 0:02:59.7]} 14. Bc1
{[%clk 0:02:50]} 14... Ne5 {[%clk 0:02:58.6]} 15. Nbd2 {[%clk 0:02:48.6]} 15...
Re8 {[%clk 0:02:56.7]} 16. h3 {[%clk 0:02:48.4]} 16... Bh5 {[%clk 0:02:56.4]}
17. Re3 {[%clk 0:02:33.3]} 17... Bf8 {[%clk 0:02:45.6]} 18. Qf1 {[%clk
0:02:10.2]} 18... Ng6 {[%clk 0:02:33.1]} 19. g4 {[%clk 0:02:03.8]} 19... Nxg4
{[%clk 0:02:30.8]} 20. hxg4 {[%clk 0:02:03.6]} 20... Bxg4 {[%clk 0:02:31.2]} 21.
Qg2 {[%clk 0:02:01.8]} 21... Bd7 {[%clk 0:02:30.8]} 22. e5 {[%clk 0:01:41.9]}
22... Nxe5 {[%clk 0:02:04.7]} 23. Nxe5 {[%clk 0:01:37.8]} 23... dxe5 {[%clk
0:02:04.5]} 24. Nf3 {[%clk 0:01:18.7]} 24... f6 {[%clk 0:01:49.6]} 25. Nh4
{[%clk 0:01:14.4]} 25... Qc8 {[%clk 0:01:25.4]} 26. Rg3 {[%clk 0:00:44.6]} 26...
Ra7 {[%clk 0:01:23.1]} 27. Bh6 {[%clk 0:00:38.7]} 27... Re7 {[%clk 0:01:22.5]}
28. d6 {[%clk 0:00:34.5]} 28... Rf7 {[%clk 0:01:22.5]} 29. Qe4 {[%clk
0:00:27.1]} 29... f5 {[%clk 0:01:12.4]} 30. Qxe5 {[%clk 0:00:27.3]} 30... Qc6
{[%clk 0:00:52.1]} 31. Rd1 {[%clk 0:00:21.5]} 31... c4 {[%clk 0:00:40.7]} 32.
Nxf5 {[%clk 0:00:20.5]} 32... Bxf5 {[%clk 0:00:39.2]} 33. Bxf5 {[%clk 0:00:20]}
33... Kh8 {[%clk 0:00:27.2]} 34. d7 {[%clk 0:00:19.5]} 34... Qxh6 {[%clk
0:00:17]} 35. d8=Q {[%clk 0:00:18.9]} 35... b4 {[%clk 0:00:09.3]} 36. Qee8
{[%clk 0:00:18.7]} 36... Kg8 {[%clk 0:00:08.8]} 37. Be6 {[%clk 0:00:18.3]} 37...
c3 {[%clk 0:00:05.7]} 38. Rd7 {[%clk 0:00:17.9]} 38... Rxd7 {[%clk 0:00:04.7]}
39. Qdxd7 {[%clk 0:00:18.1]} 39... Qc1+ {[%clk 0:00:04.2]} 40. Kg2 {[%clk
0:00:17.7]} 40... Qf4 {[%clk 0:00:03.2]} 41. Qdxf7+ {[%clk 0:00:17.1]} 1-0

[Event "*** Titled Tuesday Blitz"]
[Site "Chess.com"]
[Date "2021.03.30"]
[Round "5"]
[White "Lyschko"]
[Black "anasta10"]
[Result "0-1"]
[WhiteElo "2243"]
[BlackElo "2490"]
[TimeControl "180+1"]
[EndTime "10:56:01 PDT"]
[Termination "anasta10 won on time"]

1. c4 {[%clk 0:03:00.9]} 1... e6 {[%clk 0:02:51.2]} 2. e4 {[%clk 0:02:59.7]}
2... d5 {[%clk 0:02:46]} 3. exd5 {[%clk 0:02:59.3]} 3... exd5 {[%clk 0:02:43]}
4. cxd5 {[%clk 0:02:59.3]} 4... Nf6 {[%clk 0:02:41.6]} 5. Bb5+ {[%clk
0:02:58.7]} 5... Bd7 {[%clk 0:02:40.6]} 6. Bc4 {[%clk 0:02:57.7]} 6... Bd6
{[%clk 0:02:40.3]} 7. Qe2+ {[%clk 0:02:54.4]} 7... Be7 {[%clk 0:02:39.5]} 8. Nf3
{[%clk 0:02:50]} 8... O-O {[%clk 0:02:40.1]} 9. O-O {[%clk 0:02:49.7]} 9... Re8
{[%clk 0:02:40.7]} 10. d3 {[%clk 0:02:40.6]} 10... a5 {[%clk 0:02:34.8]} 11. Nc3
{[%clk 0:02:38]} 11... Na6 {[%clk 0:02:34.5]} 12. Bg5 {[%clk 0:02:35]} 12... h6
{[%clk 0:02:33.8]} 13. Bh4 {[%clk 0:02:33.7]} 13... Nxd5 {[%clk 0:02:02.9]} 14.
Bxe7 {[%clk 0:02:30.3]} 14... Rxe7 {[%clk 0:02:01.7]} 15. Qd2 {[%clk 0:02:21.9]}
15... Nxc3 {[%clk 0:01:59.5]} 16. bxc3 {[%clk 0:02:20.3]} 16... Nc5 {[%clk
0:01:56]} 17. Rfe1 {[%clk 0:02:13.8]} 17... Be6 {[%clk 0:01:55.2]} 18. Bxe6
{[%clk 0:02:08.8]} 18... Nxe6 {[%clk 0:01:55.2]} 19. d4 {[%clk 0:02:05.2]} 19...
c6 {[%clk 0:01:55.8]} 20. Ne5 {[%clk 0:02:02]} 20... Qd5 {[%clk 0:01:52.9]} 21.
Re3 {[%clk 0:01:49.9]} 21... Ng5 {[%clk 0:01:35.8]} 22. Rae1 {[%clk 0:01:42.4]}
22... Rae8 {[%clk 0:01:23]} 23. h4 {[%clk 0:01:31.5]} 23... Nh7 {[%clk
0:01:19.1]} 24. c4 {[%clk 0:01:20.2]} 24... Qd8 {[%clk 0:01:10.3]} 25. Qd3
{[%clk 0:00:53.2]} 25... Nf6 {[%clk 0:01:04]} 26. g3 {[%clk 0:00:41.4]} 26... c5
{[%clk 0:00:55.8]} 27. d5 {[%clk 0:00:35.8]} 27... b5 {[%clk 0:00:48.8]} 28. d6
{[%clk 0:00:25]} 28... Re6 {[%clk 0:00:48.9]} 29. d7 {[%clk 0:00:20.1]} 29...
R8e7 {[%clk 0:00:20.5]} 30. Nc6 {[%clk 0:00:18.6]} 30... Rxe3 {[%clk 0:00:15.6]}
31. Rxe3 {[%clk 0:00:15.5]} 31... Rxe3 {[%clk 0:00:13.3]} 32. Qxe3 {[%clk
0:00:11.8]} 32... Qxd7 {[%clk 0:00:13.7]} 33. Qxc5 {[%clk 0:00:11.3]} 33... bxc4
{[%clk 0:00:13.2]} 34. Qxc4 {[%clk 0:00:10.7]} 34... Qd1+ {[%clk 0:00:12.9]} 35.
Kg2 {[%clk 0:00:10]} 35... Qd6 {[%clk 0:00:11.6]} 36. Nd4 {[%clk 0:00:08.2]}
36... g6 {[%clk 0:00:05.7]} 37. Nf3 {[%clk 0:00:07.3]} 37... Kg7 {[%clk
0:00:05.9]} 38. Nd4 {[%clk 0:00:06.4]} 38... Qd5+ {[%clk 0:00:03.6]} 39. Qxd5
{[%clk 0:00:03]} 39... Nxd5 {[%clk 0:00:04.5]} 40. Nc6 {[%clk 0:00:02.4]} 40...
a4 {[%clk 0:00:03.6]} 41. Kf3 {[%clk 0:00:01.9]} 41... Nc3 {[%clk 0:00:03.7]}
42. a3 {[%clk 0:00:01.4]} 42... Nb5 {[%clk 0:00:04]} 0-1

[Event "*** Titled Tuesday Blitz"]
[Site "Chess.com"]
[Date "2021.03.30"]
[Round "5"]
[White "youngKID"]
[Black "Escanor89"]
[Result "1/2-1/2"]
[WhiteElo "2741"]
[BlackElo "2572"]
[TimeControl "180+1"]
[EndTime "10:56:06 PDT"]
[Termination "Game drawn by repetition"]

1. e4 {[%clk 0:03:00.9]} 1... c5 {[%clk 0:02:57.9]} 2. Nf3 {[%clk 0:03:00.6]}
2... d6 {[%clk 0:02:56.9]} 3. Bb5+ {[%clk 0:02:59.7]} 3... Nd7 {[%clk
0:02:55.9]} 4. O-O {[%clk 0:02:59.5]} 4... a6 {[%clk 0:02:55.3]} 5. Bd3 {[%clk
0:02:59.3]} 5... Ngf6 {[%clk 0:02:54.4]} 6. Re1 {[%clk 0:02:57.6]} 6... e6
{[%clk 0:02:52.1]} 7. c3 {[%clk 0:02:57.3]} 7... b5 {[%clk 0:02:50.8]} 8. Bc2
{[%clk 0:02:57.1]} 8... c4 {[%clk 0:02:48.1]} 9. d4 {[%clk 0:02:51.7]} 9... cxd3
{[%clk 0:02:46.6]} 10. Bxd3 {[%clk 0:02:52]} 10... Be7 {[%clk 0:02:44.4]} 11. a4
{[%clk 0:02:52.1]} 11... bxa4 {[%clk 0:02:34.7]} 12. Qxa4 {[%clk 0:02:53]} 12...
O-O {[%clk 0:02:32.6]} 13. Be3 {[%clk 0:02:51.7]} 13... Bb7 {[%clk 0:02:29.9]}
14. Nbd2 {[%clk 0:02:49.2]} 14... Qc7 {[%clk 0:02:25.6]} 15. Nb3 {[%clk
0:02:41.5]} 15... Ng4 {[%clk 0:02:13.7]} 16. Bf4 {[%clk 0:01:54.1]} 16... Nc5
{[%clk 0:01:48.4]} 17. Nxc5 {[%clk 0:01:51.2]} 17... Qxc5 {[%clk 0:01:48.1]} 18.
Re2 {[%clk 0:01:35.1]} 18... Rfd8 {[%clk 0:01:38.5]} 19. h3 {[%clk 0:01:34.2]}
19... Ne5 {[%clk 0:01:26.4]} 20. Nxe5 {[%clk 0:01:28.1]} 20... dxe5 {[%clk
0:01:26.1]} 21. Be3 {[%clk 0:01:28.7]} 21... Qc6 {[%clk 0:01:20.1]} 22. Bc2
{[%clk 0:01:20.2]} 22... Qb5 {[%clk 0:01:00.8]} 23. Ree1 {[%clk 0:01:04.2]}
23... Bc6 {[%clk 0:00:57.2]} 24. Qxb5 {[%clk 0:00:34.9]} 24... axb5 {[%clk
0:00:58.1]} 25. b4 {[%clk 0:00:30.9]} 25... g6 {[%clk 0:00:54.4]} 26. f3 {[%clk
0:00:27.6]} 26... f5 {[%clk 0:00:53.6]} 27. Bb6 {[%clk 0:00:25.7]} 27... Rxa1
{[%clk 0:00:41]} 28. Rxa1 {[%clk 0:00:26.6]} 28... Rd7 {[%clk 0:00:40]} 29. Be3
{[%clk 0:00:22.4]} 29... Kf7 {[%clk 0:00:37.4]} 30. Ra6 {[%clk 0:00:20.8]} 30...
Rc7 {[%clk 0:00:35.1]} 31. Bb3 {[%clk 0:00:12.1]} 31... Bd7 {[%clk 0:00:18.3]}
32. Bd2 {[%clk 0:00:09.8]} 32... h6 {[%clk 0:00:18.5]} 33. Kf2 {[%clk
0:00:09.1]} 33... Bg5 {[%clk 0:00:18.6]} 34. Ke2 {[%clk 0:00:08.6]} 34... Bf4
{[%clk 0:00:18.2]} 35. Bxf4 {[%clk 0:00:08.2]} 35... exf4 {[%clk 0:00:18.1]} 36.
e5 {[%clk 0:00:08.3]} 36... Rxc3 {[%clk 0:00:17.1]} 37. Ra3 {[%clk 0:00:06.7]}
37... Ke7 {[%clk 0:00:16.9]} 38. Kd2 {[%clk 0:00:04.3]} 38... Rc8 {[%clk
0:00:16]} 39. Ra7 {[%clk 0:00:03.3]} 39... Rd8 {[%clk 0:00:15.8]} 40. Kd3 {[%clk
0:00:03.2]} 40... Rc8 {[%clk 0:00:15.3]} 41. Kd4 {[%clk 0:00:03]} 41... Rc1
{[%clk 0:00:15.3]} 42. Rb7 {[%clk 0:00:01.4]} 42... Kd8 {[%clk 0:00:14.8]} 43.
Rb6 {[%clk 0:00:01.8]} 43... Ke7 {[%clk 0:00:13]} 44. Rb7 {[%clk 0:00:02]} 44...
Kd8 {[%clk 0:00:12.9]} 45. Rb6 {[%clk 0:00:02.3]} 45... Ke7 {[%clk 0:00:07.4]}
46. Rb7 {[%clk 0:00:01.9]} 1/2-1/2

[Event "*** Titled Tuesday Blitz"]
[Site "Chess.com"]
[Date "2021.03.30"]
[Round "5"]
[White "vlad_Sid"]
[Black "Volodar_Murzin"]
[Result "0-1"]
[WhiteElo "2569"]
[BlackElo "2763"]
[TimeControl "180+1"]
[EndTime "10:56:07 PDT"]
[Termination "Volodar_Murzin won by resignation"]

1. c4 {[%clk 0:02:32.4]} 1... Nf6 {[%clk 0:02:58.6]} 2. g3 {[%clk 0:02:33.3]}
2... g6 {[%clk 0:02:57.9]} 3. Bg2 {[%clk 0:02:33.6]} 3... Bg7 {[%clk 0:02:58.4]}
4. Nc3 {[%clk 0:02:34.5]} 4... O-O {[%clk 0:02:58]} 5. Nf3 {[%clk 0:02:34.8]}
5... d6 {[%clk 0:02:57.3]} 6. O-O {[%clk 0:02:35.1]} 6... e5 {[%clk 0:02:55.7]}
7. Rb1 {[%clk 0:02:34.5]} 7... Nc6 {[%clk 0:02:51.2]} 8. b4 {[%clk 0:02:34.6]}
8... Be6 {[%clk 0:02:46.5]} 9. d3 {[%clk 0:02:30.7]} 9... h6 {[%clk 0:02:46.1]}
10. b5 {[%clk 0:02:29.6]} 10... Ne7 {[%clk 0:02:45.4]} 11. Nd2 {[%clk
0:02:29.4]} 11... Qc8 {[%clk 0:02:26.2]} 12. Re1 {[%clk 0:02:28]} 12... Nh7
{[%clk 0:02:20.9]} 13. a4 {[%clk 0:02:25.5]} 13... f5 {[%clk 0:02:15.6]} 14. Nd5
{[%clk 0:02:24.3]} 14... Nxd5 {[%clk 0:02:13.4]} 15. cxd5 {[%clk 0:02:25.2]}
15... Bf7 {[%clk 0:02:13.3]} 16. Qc2 {[%clk 0:02:23.7]} 16... Qd7 {[%clk
0:02:11.2]} 17. Ba3 {[%clk 0:02:22.1]} 17... Rac8 {[%clk 0:02:07.4]} 18. Rec1
{[%clk 0:02:20.8]} 18... h5 {[%clk 0:02:03.9]} 19. Rb4 {[%clk 0:02:18.2]} 19...
Nf6 {[%clk 0:01:43.9]} 20. e4 {[%clk 0:01:29.4]} 20... Rfe8 {[%clk 0:01:38]} 21.
Nc4 {[%clk 0:01:01.5]} 21... Bh6 {[%clk 0:01:29.7]} 22. Re1 {[%clk 0:00:59.1]}
22... f4 {[%clk 0:01:29.2]} 23. Bc1 {[%clk 0:00:49.5]} 23... g5 {[%clk
0:01:27.7]} 24. h3 {[%clk 0:00:41.3]} 24... Kh8 {[%clk 0:01:16.8]} 25. Nd2
{[%clk 0:00:19.4]} 25... c6 {[%clk 0:00:25.4]} 26. bxc6 {[%clk 0:00:18.4]} 26...
bxc6 {[%clk 0:00:26.3]} 27. dxc6 {[%clk 0:00:19.3]} 27... Rxc6 {[%clk
0:00:25.8]} 28. Qb1 {[%clk 0:00:19]} 28... Rec8 {[%clk 0:00:25.1]} 29. Rb7
{[%clk 0:00:14.7]} 29... Rxc1 {[%clk 0:00:18.8]} 30. Rxd7 {[%clk 0:00:09.7]}
30... Rxb1 {[%clk 0:00:18.7]} 31. Rxb1 {[%clk 0:00:09.6]} 31... Nxd7 {[%clk
0:00:18]} 32. Rb7 {[%clk 0:00:10.5]} 32... Be6 {[%clk 0:00:16.9]} 33. Rxa7
{[%clk 0:00:09.5]} 33... g4 {[%clk 0:00:16.7]} 34. hxg4 {[%clk 0:00:09.3]} 34...
fxg3 {[%clk 0:00:14.3]} 35. Nc4 {[%clk 0:00:09]} 35... hxg4 {[%clk 0:00:13.6]}
36. fxg3 {[%clk 0:00:08.9]} 36... Bxc4 {[%clk 0:00:06.8]} 37. Rxd7 {[%clk
0:00:04.3]} 37... Bxd3 {[%clk 0:00:06.6]} 38. Rxd6 {[%clk 0:00:04.7]} 38... Be3+
{[%clk 0:00:06.8]} 39. Kh2 {[%clk 0:00:05]} 39... Bd4 {[%clk 0:00:06]} 40. Rg6
{[%clk 0:00:03.1]} 40... Be2 {[%clk 0:00:05.6]} 41. a5 {[%clk 0:00:03.4]} 41...
Rc2 {[%clk 0:00:05.1]} 42. a6 {[%clk 0:00:03.8]} 42... Bf3 {[%clk 0:00:04.6]}
43. Kh1 {[%clk 0:00:01.9]} 43... Bxg2+ {[%clk 0:00:03.9]} 0-1

[Event "*** Titled Tuesday Blitz"]
[Site "Chess.com"]
[Date "2021.03.30"]
[Round "5"]
[White "Mops_2004"]
[Black "NoGuru"]
[Result "1-0"]
[WhiteElo "2513"]
[BlackElo "2337"]
[TimeControl "180+1"]
[EndTime "10:56:07 PDT"]
[Termination "Mops_2004 won on time"]

1. Nf3 {[%clk 0:03:00.9]} 1... d5 {[%clk 0:02:59.3]} 2. g3 {[%clk 0:03:00.6]}
2... Nf6 {[%clk 0:02:59.4]} 3. Bg2 {[%clk 0:03:00.9]} 3... e6 {[%clk 0:02:58.6]}
4. O-O {[%clk 0:02:59.6]} 4... Be7 {[%clk 0:02:58.8]} 5. c4 {[%clk 0:02:59.8]}
5... O-O {[%clk 0:02:57.4]} 6. d4 {[%clk 0:02:59]} 6... dxc4 {[%clk 0:02:55.4]}
7. Na3 {[%clk 0:02:58.2]} 7... Bxa3 {[%clk 0:02:32.6]} 8. bxa3 {[%clk
0:02:59.1]} 8... Nc6 {[%clk 0:02:26.5]} 9. a4 {[%clk 0:02:35.8]} 9... Rb8 {[%clk
0:02:13.7]} 10. Ba3 {[%clk 0:02:30]} 10... Re8 {[%clk 0:02:13.3]} 11. Rc1 {[%clk
0:02:25.4]} 11... e5 {[%clk 0:02:06.9]} 12. dxe5 {[%clk 0:02:17.8]} 12... Ng4
{[%clk 0:02:03.5]} 13. Qxd8 {[%clk 0:02:10.1]} 13... Rxd8 {[%clk 0:02:03.6]} 14.
Rxc4 {[%clk 0:01:59.1]} 14... Be6 {[%clk 0:02:00.9]} 15. Rc2 {[%clk 0:01:55.4]}
15... Rd7 {[%clk 0:01:56.6]} 16. Rfc1 {[%clk 0:01:33.7]} 16... Rc8 {[%clk
0:01:22.5]} 17. h3 {[%clk 0:01:26.8]} 17... Ngxe5 {[%clk 0:01:18.3]} 18. Nxe5
{[%clk 0:01:27.7]} 18... Nxe5 {[%clk 0:01:18.3]} 19. Bxb7 {[%clk 0:01:27.4]}
19... Rb8 {[%clk 0:01:15.4]} 20. Bg2 {[%clk 0:01:22.7]} 20... h6 {[%clk
0:00:41.1]} 21. f4 {[%clk 0:01:19.4]} 21... Ng6 {[%clk 0:00:34.7]} 22. e4 {[%clk
0:01:13.7]} 22... f5 {[%clk 0:00:27.6]} 23. exf5 {[%clk 0:00:31.1]} 23... Bxf5
{[%clk 0:00:26.9]} 24. Rxc7 {[%clk 0:00:31.7]} 24... Rxc7 {[%clk 0:00:20.7]} 25.
Rxc7 {[%clk 0:00:32.6]} 25... Rb1+ {[%clk 0:00:19.9]} 26. Rc1 {[%clk 0:00:32.3]}
26... Rxc1+ {[%clk 0:00:17.1]} 27. Bxc1 {[%clk 0:00:33.2]} 27... Be6 {[%clk
0:00:16.5]} 28. a3 {[%clk 0:00:30.4]} 28... a6 {[%clk 0:00:16.2]} 29. Bf1 {[%clk
0:00:28.8]} 29... Ne7 {[%clk 0:00:15]} 30. g4 {[%clk 0:00:28]} 30... Bb3 {[%clk
0:00:14.2]} 31. a5 {[%clk 0:00:25.1]} 31... Nc6 {[%clk 0:00:14.1]} 32. Bd2
{[%clk 0:00:25.4]} 32... Nb8 {[%clk 0:00:13.5]} 33. Kf2 {[%clk 0:00:18.8]} 33...
Kf7 {[%clk 0:00:12.8]} 34. Ke3 {[%clk 0:00:19.2]} 34... Ke6 {[%clk 0:00:12.6]}
35. Kd4 {[%clk 0:00:19]} 35... Bd5 {[%clk 0:00:10.7]} 36. Kc5 {[%clk 0:00:17.3]}
36... Nd7+ {[%clk 0:00:08.7]} 37. Kd4 {[%clk 0:00:17.6]} 37... Bb7 {[%clk
0:00:07.9]} 38. Bb4 {[%clk 0:00:16.4]} 38... Nf6 {[%clk 0:00:06.3]} 39. f5+
{[%clk 0:00:16.2]} 39... Kd7 {[%clk 0:00:06.2]} 40. Bd3 {[%clk 0:00:13.4]} 40...
Ne8 {[%clk 0:00:03.9]} 41. Ke5 {[%clk 0:00:12.9]} 41... Bc8 {[%clk 0:00:03.9]}
42. Bc4 {[%clk 0:00:11.9]} 42... Kc6 {[%clk 0:00:04]} 43. a4 {[%clk 0:00:11]}
43... Bd7 {[%clk 0:00:03.1]} 44. Bf8 {[%clk 0:00:10.4]} 44... Kc7 {[%clk
0:00:01.6]} 45. Bxa6 {[%clk 0:00:10.3]} 45... Bxa4 {[%clk 0:00:01.3]} 46. Bc4
{[%clk 0:00:10.7]} 46... Kd7 {[%clk 0:00:01.1]} 47. a6 {[%clk 0:00:09.6]} 1-0